[Event "Titled Tuesday Blitz January 31 Late 2023"]
[White "Papayan, Oleg"]
[Black "Szente Varga, Fruzsina"]
[WhiteFideId "4193911"]
[BlackFideId "712264"]
[WhiteElo "2253"]
[BlackElo "2075"]
[Result "0-1"]
[Round "02"]
[TimeControl "180+2"]
[Date "2023.01.31"]
[WhiteClock "0:00:01"]
[BlackClock "0:00:17"]

1. d4 {[%clk 0:02:55]}  Nf6 {[%clk 0:02:59]} 2. Nf3 {[%clk 0:02:55]}  g6 {[%clk 0:02:59]} 3. Nc3 {[%clk 0:02:55]}  d5 {[%clk 0:02:59]} 4. Bf4 {[%clk 0:02:52]}  Bg7 {[%clk 0:02:59]} 5. Nb5 {[%clk 0:02:52]}  Na6 {[%clk 0:02:58]} 6. e3 {[%clk 0:02:52]}  O-O {[%clk 0:02:57]} 7. h3 {[%clk 0:02:48]}  c6 {[%clk 0:02:57]} 8. Nc3 {[%clk 0:02:49]}  Nc7 {[%clk 0:02:57]} 9. Bd3 {[%clk 0:02:47]}  Nce8 {[%clk 0:02:45]} 10. O-O {[%clk 0:02:47]}  Nd6 {[%clk 0:02:46]} 11. a4 {[%clk 0:02:43]}  Bf5 {[%clk 0:02:44]} 12. a5 {[%clk 0:02:29]}  Nfe4 {[%clk 0:02:38]} 13. Ne2 {[%clk 0:02:20]}  c5 {[%clk 0:02:22]} 14. c3 {[%clk 0:02:10]}  c4 {[%clk 0:02:19]} 15. Bc2 {[%clk 0:02:10]}  Re8 {[%clk 0:01:41]} 16. g4 {[%clk 0:01:36]}  Bd7 {[%clk 0:01:37]} 17. Bh2 {[%clk 0:01:30]}  f5 {[%clk 0:01:34]} 18. g5 {[%clk 0:01:27]}  Nf7 {[%clk 0:01:19]} 19. h4 {[%clk 0:01:25]}  h6 {[%clk 0:01:19]} 20. Bf4 {[%clk 0:01:09]}  hxg5 {[%clk 0:01:15]} 21. Nxg5 {[%clk 0:01:05]}  Nexg5 {[%clk 0:01:14]} 22. Bxg5 {[%clk 0:00:51]}  Nxg5 {[%clk 0:01:14]} 23. hxg5 {[%clk 0:00:52]}  e5 {[%clk 0:01:13]} 24. f4 {[%clk 0:00:52]}  exf4 {[%clk 0:01:05]} 25. exf4 {[%clk 0:00:53]}  Qe7 {[%clk 0:01:02]} 26. Ng3 {[%clk 0:00:50]}  Qe3+ {[%clk 0:00:59]} 27. Kg2 {[%clk 0:00:49]}  Kf7 {[%clk 0:00:38]} 28. Qf3 {[%clk 0:00:40]}  Qxf3+ {[%clk 0:00:34]} 29. Kxf3 {[%clk 0:00:41]}  Re7 {[%clk 0:00:33]} 30. Rfe1 {[%clk 0:00:35]}  Rae8 {[%clk 0:00:33]} 31. Rxe7+ {[%clk 0:00:31]}  Rxe7 {[%clk 0:00:34]} 32. Nf1 {[%clk 0:00:21]}  Bf8 {[%clk 0:00:32]} 33. Ne3 {[%clk 0:00:22]}  Bc6 {[%clk 0:00:32]} 34. Ba4 {[%clk 0:00:22]}  Re4 {[%clk 0:00:29]} 35. Bxc6 {[%clk 0:00:12]}  bxc6 {[%clk 0:00:29]} 36. a6 {[%clk 0:00:09]}  Bd6 {[%clk 0:00:29]} 37. Ng2 {[%clk 0:00:10]}  Re8 {[%clk 0:00:25]} 38. Ne3 {[%clk 0:00:05]}  Rb8 {[%clk 0:00:25]} 39. Nd1 {[%clk 0:00:05]}  Rb6 {[%clk 0:00:24]} 40. Ra4 {[%clk 0:00:04]}  Ke6 {[%clk 0:00:22]} 41. Ra2 {[%clk 0:00:05]}  c5 {[%clk 0:00:19]} 42. dxc5 {[%clk 0:00:02]}  Bxc5 {[%clk 0:00:20]} 43. Ne3 {[%clk 0:00:02]}  Kd6 {[%clk 0:00:19]} 44. Nc2 {[%clk 0:00:02]}  Kc6 {[%clk 0:00:18]} 45. Ke2 {[%clk 0:00:01]}  Kb5 {[%clk 0:00:17]} 0-1


[Site "https://www.chess.com"]

[Event "Titled Tuesday Blitz January 31 Late 2023"]
[White "Riverol, Jose"]
[Black "Mortazavi, Ali"]
[WhiteFideId "3000427"]
[BlackFideId "401323"]
[WhiteElo "2304"]
[BlackElo "2333"]
[Result "1-0"]
[Round "02"]
[TimeControl "180+2"]
[Date "2023.01.31"]
[WhiteClock "0:01:05"]
[BlackClock "0:00:10"]

1. d4 {[%clk 0:03:00]}  Nf6 {[%clk 0:02:59]} 2. c4 {[%clk 0:03:00]}  g6 {[%clk 0:02:59]} 3. Nc3 {[%clk 0:03:01]}  Bg7 {[%clk 0:03:00]} 4. e4 {[%clk 0:03:01]}  O-O {[%clk 0:03:01]} 5. Nf3 {[%clk 0:03:01]}  d6 {[%clk 0:03:02]} 6. Be2 {[%clk 0:03:01]}  Bg4 {[%clk 0:03:02]} 7. Ng1 {[%clk 0:03:01]}  Bc8 {[%clk 0:03:01]} 8. Nf3 {[%clk 0:03:01]}  c5 {[%clk 0:02:53]} 9. O-O {[%clk 0:03:00]}  Bg4 {[%clk 0:02:52]} 10. Be3 {[%clk 0:02:59]}  Nfd7 {[%clk 0:02:39]} 11. Qd2 {[%clk 0:02:55]}  Bxf3 {[%clk 0:02:38]} 12. Bxf3 {[%clk 0:02:55]}  Nc6 {[%clk 0:02:39]} 13. dxc5 {[%clk 0:02:54]}  dxc5 {[%clk 0:02:39]} 14. Rad1 {[%clk 0:02:52]}  Nd4 {[%clk 0:02:38]} 15. Nb5 {[%clk 0:02:45]}  e5 {[%clk 0:02:11]} 16. Bxd4 {[%clk 0:02:27]}  cxd4 {[%clk 0:02:04]} 17. b4 {[%clk 0:02:21]}  b6 {[%clk 0:01:51]} 18. Rc1 {[%clk 0:02:16]}  Qh4 {[%clk 0:01:21]} 19. g3 {[%clk 0:02:08]}  Qh6 {[%clk 0:01:20]} 20. Qxh6 {[%clk 0:02:05]}  Bxh6 {[%clk 0:01:20]} 21. Rc2 {[%clk 0:02:06]}  a5 {[%clk 0:01:20]} 22. a3 {[%clk 0:02:04]}  axb4 {[%clk 0:01:20]} 23. axb4 {[%clk 0:02:04]}  Ra4 {[%clk 0:01:20]} 24. Rb1 {[%clk 0:02:05]}  f5 {[%clk 0:01:11]} 25. exf5 {[%clk 0:02:04]}  gxf5 {[%clk 0:01:10]} 26. Bc6 {[%clk 0:02:02]}  Nf6 {[%clk 0:01:08]} 27. Nd6 {[%clk 0:02:01]}  Nh5 {[%clk 0:00:40]} 28. Bxa4 {[%clk 0:01:59]}  e4 {[%clk 0:00:37]} 29. Bd7 {[%clk 0:01:56]}  d3 {[%clk 0:00:35]} 30. Rc3 {[%clk 0:01:54]}  Bg7 {[%clk 0:00:34]} 31. Rcc1 {[%clk 0:01:50]}  Rd8 {[%clk 0:00:34]} 32. Be6+ {[%clk 0:01:48]}  Kf8 {[%clk 0:00:33]} 33. Nxf5 {[%clk 0:01:48]}  Be5 {[%clk 0:00:31]} 34. Bd5 {[%clk 0:01:40]}  Nf6 {[%clk 0:00:30]} 35. Ne3 {[%clk 0:01:40]}  Bd4 {[%clk 0:00:28]} 36. h3 {[%clk 0:01:30]}  Ke7 {[%clk 0:00:27]} 37. g4 {[%clk 0:01:30]}  h6 {[%clk 0:00:27]} 38. Kf1 {[%clk 0:01:29]}  Bxe3 {[%clk 0:00:21]} 39. fxe3 {[%clk 0:01:29]}  Kd6 {[%clk 0:00:21]} 40. Ke1 {[%clk 0:01:18]}  Ke5 {[%clk 0:00:20]} 41. Kd2 {[%clk 0:01:18]}  h5 {[%clk 0:00:16]} 42. g5 {[%clk 0:01:17]}  Nh7 {[%clk 0:00:16]} 43. h4 {[%clk 0:01:17]}  Nf8 {[%clk 0:00:16]} 44. Rf1 {[%clk 0:01:16]}  Ng6 {[%clk 0:00:16]} 45. Rh1 {[%clk 0:01:08]}  Rf8 {[%clk 0:00:11]} 46. Rbf1 {[%clk 0:01:08]}  Rxf1 {[%clk 0:00:10]} 47. Rxf1 {[%clk 0:01:08]}  Nxh4 {[%clk 0:00:11]} 48. Rf4 {[%clk 0:01:08]}  Nf3+ {[%clk 0:00:11]} 49. Rxf3 {[%clk 0:01:08]}  exf3 {[%clk 0:00:11]} 50. Bxf3 {[%clk 0:01:08]}  h4 {[%clk 0:00:11]} 51. Bg4 {[%clk 0:01:08]}  Kd6 {[%clk 0:00:09]} 52. g6 {[%clk 0:01:05]}  Ke7 {[%clk 0:00:10]} 1-0


[Site "https://www.chess.com"]

[Event "Titled Tuesday Blitz January 31 Late 2023"]
[White "Mayaud, Raphael"]
[Black "Travadon, Loic"]
[WhiteFideId "627151"]
[BlackFideId "26092131"]
[WhiteElo "2201"]
[BlackElo "2461"]
[Result "0-1"]
[Round "02"]
[TimeControl "180+2"]
[Date "2023.01.31"]
[WhiteClock "0:00:01"]
[BlackClock "0:00:14"]

1. d4 {[%clk 0:03:00]}  d5 {[%clk 0:02:59]} 2. Nf3 {[%clk 0:03:00]}  Nf6 {[%clk 0:02:58]} 3. e3 {[%clk 0:03:00]}  c5 {[%clk 0:02:56]} 4. Bd3 {[%clk 0:02:55]}  Nc6 {[%clk 0:02:55]} 5. b3 {[%clk 0:02:54]}  cxd4 {[%clk 0:02:54]} 6. exd4 {[%clk 0:02:54]}  Bg4 {[%clk 0:02:52]} 7. Bb2 {[%clk 0:02:53]}  e6 {[%clk 0:02:52]} 8. O-O {[%clk 0:02:52]}  Bd6 {[%clk 0:02:51]} 9. Nbd2 {[%clk 0:02:50]}  O-O {[%clk 0:02:40]} 10. c3 {[%clk 0:02:25]}  Rc8 {[%clk 0:02:40]} 11. Qe2 {[%clk 0:02:20]}  Bb8 {[%clk 0:02:39]} 12. h3 {[%clk 0:02:18]}  Bh5 {[%clk 0:02:38]} 13. Rfe1 {[%clk 0:02:13]}  a6 {[%clk 0:02:19]} 14. Qe3 {[%clk 0:02:10]}  Bg6 {[%clk 0:01:58]} 15. Ne5 {[%clk 0:02:07]}  Nxe5 {[%clk 0:01:56]} 16. dxe5 {[%clk 0:02:06]}  Bxd3 {[%clk 0:01:54]} 17. exf6 {[%clk 0:01:44]}  Bg6 {[%clk 0:01:54]} 18. fxg7 {[%clk 0:01:44]}  Kxg7 {[%clk 0:01:54]} 19. Nf3 {[%clk 0:01:40]}  Kg8 {[%clk 0:01:32]} 20. Ne5 {[%clk 0:01:39]}  Bf5 {[%clk 0:01:23]} 21. g4 {[%clk 0:01:24]}  Be4 {[%clk 0:01:19]} 22. f3 {[%clk 0:01:00]}  Bxe5 {[%clk 0:01:01]} 23. fxe4 {[%clk 0:01:00]}  Bc7 {[%clk 0:01:02]} 24. Kg2 {[%clk 0:00:57]}  dxe4 {[%clk 0:00:55]} 25. Qxe4 {[%clk 0:00:54]}  Qh4 {[%clk 0:00:54]} 26. Re3 {[%clk 0:00:52]}  Bb6 {[%clk 0:00:51]} 27. Re2 {[%clk 0:00:47]}  Rc6 {[%clk 0:00:42]} 28. c4 {[%clk 0:00:44]}  Bc7 {[%clk 0:00:41]} 29. Re3 {[%clk 0:00:35]}  Rd8 {[%clk 0:00:39]} 30. Rae1 {[%clk 0:00:32]}  Rd2+ {[%clk 0:00:37]} 31. R1e2 {[%clk 0:00:32]}  Rxe2+ {[%clk 0:00:38]} 32. Rxe2 {[%clk 0:00:33]}  Qg3+ {[%clk 0:00:34]} 33. Kf1 {[%clk 0:00:31]}  Qxh3+ {[%clk 0:00:33]} 34. Ke1 {[%clk 0:00:30]}  Qg3+ {[%clk 0:00:27]} 35. Kd1 {[%clk 0:00:30]}  Rd6+ {[%clk 0:00:26]} 36. Kc1 {[%clk 0:00:29]}  Rd3 {[%clk 0:00:20]} 37. Kc2 {[%clk 0:00:19]}  Rf3 {[%clk 0:00:15]} 38. Qd4 {[%clk 0:00:17]}  e5 {[%clk 0:00:14]} 39. Qd7 {[%clk 0:00:14]}  Rf2 {[%clk 0:00:13]} 40. Rxf2 {[%clk 0:00:07]}  Qxf2+ {[%clk 0:00:14]} 41. Kc1 {[%clk 0:00:08]}  Qf4+ {[%clk 0:00:14]} 42. Kb1 {[%clk 0:00:07]}  e4 {[%clk 0:00:14]} 43. Qe7 {[%clk 0:00:02]}  Qf1+ {[%clk 0:00:13]} 44. Kc2 {[%clk 0:00:02]}  Qd3+ {[%clk 0:00:13]} 45. Kc1 {[%clk 0:00:01]}  Bf4# {[%clk 0:00:14]} 0-1


[Site "https://www.chess.com"]

[Event "Titled Tuesday Blitz January 31 Late 2023"]
[White "Kaufman, Lawrence"]
[Black "Senthilkumar, Pranav"]
[WhiteFideId "2000555"]
[BlackFideId "2083477"]
[WhiteElo "2188"]
[BlackElo "1854"]
[Result "0-1"]
[Round "02"]
[TimeControl "180+2"]
[Date "2023.01.31"]
[WhiteClock "0:00:01"]
[BlackClock "0:00:06"]

1. e4 {[%clk 0:02:58]}  c5 {[%clk 0:02:55]} 2. Nf3 {[%clk 0:02:57]}  e6 {[%clk 0:02:51]} 3. c3 {[%clk 0:02:56]}  Nf6 {[%clk 0:02:48]} 4. e5 {[%clk 0:02:56]}  Nd5 {[%clk 0:02:49]} 5. Bc4 {[%clk 0:02:55]}  Nb6 {[%clk 0:02:47]} 6. Bb3 {[%clk 0:02:54]}  Be7 {[%clk 0:02:47]} 7. d4 {[%clk 0:02:52]}  O-O {[%clk 0:02:47]} 8. O-O {[%clk 0:02:51]}  d6 {[%clk 0:02:44]} 9. dxc5 {[%clk 0:02:39]}  dxc5 {[%clk 0:02:36]} 10. Qe2 {[%clk 0:02:38]}  Nc6 {[%clk 0:02:30]} 11. Rd1 {[%clk 0:02:30]}  Qc7 {[%clk 0:02:30]} 12. Na3 {[%clk 0:02:20]}  a6 {[%clk 0:02:20]} 13. Bf4 {[%clk 0:02:13]}  Na5 {[%clk 0:02:18]} 14. Bc2 {[%clk 0:02:07]}  c4 {[%clk 0:02:13]} 15. Nb1 {[%clk 0:01:50]}  Nd5 {[%clk 0:02:09]} 16. Bg5 {[%clk 0:01:34]}  h6 {[%clk 0:01:48]} 17. Qe4 {[%clk 0:01:23]}  g6 {[%clk 0:01:47]} 18. Bxh6 {[%clk 0:01:18]}  Re8 {[%clk 0:01:39]} 19. Nbd2 {[%clk 0:01:14]}  Qb6 {[%clk 0:01:36]} 20. Rab1 {[%clk 0:01:10]}  Bc5 {[%clk 0:01:31]} 21. Qh4 {[%clk 0:00:56]}  Be7 {[%clk 0:01:11]} 22. Bg5 {[%clk 0:00:53]}  Bf8 {[%clk 0:00:44]} 23. Ne4 {[%clk 0:00:50]}  Bg7 {[%clk 0:00:40]} 24. Nf6+ {[%clk 0:00:42]}  Nxf6 {[%clk 0:00:40]} 25. exf6 {[%clk 0:00:36]}  Bf8 {[%clk 0:00:39]} 26. Bh6 {[%clk 0:00:28]}  Qc5 {[%clk 0:00:23]} 27. Bxf8 {[%clk 0:00:19]}  Qh5 {[%clk 0:00:22]} 28. Qxh5 {[%clk 0:00:18]}  gxh5 {[%clk 0:00:23]} 29. Bg7 {[%clk 0:00:17]}  e5 {[%clk 0:00:17]} 30. Rd5 {[%clk 0:00:15]}  Nc6 {[%clk 0:00:13]} 31. Rbd1 {[%clk 0:00:14]}  Bg4 {[%clk 0:00:12]} 32. h3 {[%clk 0:00:13]}  Bxf3 {[%clk 0:00:11]} 33. gxf3 {[%clk 0:00:11]}  b5 {[%clk 0:00:08]} 34. Be4 {[%clk 0:00:10]}  Rac8 {[%clk 0:00:07]} 35. Rd6 {[%clk 0:00:10]}  Nd8 {[%clk 0:00:07]} 36. Rxa6 {[%clk 0:00:10]}  Ne6 {[%clk 0:00:07]} 37. Rad6 {[%clk 0:00:09]}  Ng5 {[%clk 0:00:07]} 38. Kg2 {[%clk 0:00:08]}  Ne6 {[%clk 0:00:07]} 39. R6d5 {[%clk 0:00:08]}  Nf4+ {[%clk 0:00:08]} 40. Kg3 {[%clk 0:00:07]}  Nxd5 {[%clk 0:00:08]} 41. Rxd5 {[%clk 0:00:07]}  Ra8 {[%clk 0:00:09]} 42. Kh4 {[%clk 0:00:07]}  Rxa2 {[%clk 0:00:09]} 43. Rxb5 {[%clk 0:00:05]}  Ra1 {[%clk 0:00:04]} 44. Kxh5 {[%clk 0:00:05]}  Rh1 {[%clk 0:00:04]} 45. h4 {[%clk 0:00:05]}  Rh2 {[%clk 0:00:04]} 46. Kg5 {[%clk 0:00:05]}  Rg2+ {[%clk 0:00:04]} 47. Kf5 {[%clk 0:00:04]}  Rh2 {[%clk 0:00:04]} 48. Kg4 {[%clk 0:00:04]}  Rg2+ {[%clk 0:00:04]} 49. Kh3 {[%clk 0:00:04]}  Rxf2 {[%clk 0:00:04]} 50. h5 {[%clk 0:00:04]}  Rf1 {[%clk 0:00:04]} 51. h6 {[%clk 0:00:04]}  Rh1+ {[%clk 0:00:05]} 52. Kg2 {[%clk 0:00:05]}  Rh5 {[%clk 0:00:05]} 53. h7+ {[%clk 0:00:05]}  Rxh7 {[%clk 0:00:05]} 54. Bxh7+ {[%clk 0:00:05]}  Kxh7 {[%clk 0:00:06]} 55. Rc5 {[%clk 0:00:05]}  Kg6 {[%clk 0:00:06]} 56. Rxc4 {[%clk 0:00:05]}  Rb8 {[%clk 0:00:06]} 57. Re4 {[%clk 0:00:05]}  Kf5 {[%clk 0:00:06]} 58. Re2 {[%clk 0:00:04]}  Rb3 {[%clk 0:00:07]} 59. Rc2 {[%clk 0:00:04]}  Ke6 {[%clk 0:00:06]} 60. Kf2 {[%clk 0:00:04]}  Kd5 {[%clk 0:00:07]} 61. Ke3 {[%clk 0:00:04]}  Kc4 {[%clk 0:00:06]} 62. Kd2 {[%clk 0:00:04]}  Rb5 {[%clk 0:00:06]} 63. b4 {[%clk 0:00:04]}  Rd5+ {[%clk 0:00:07]} 64. Ke2 {[%clk 0:00:04]}  Rb5 {[%clk 0:00:06]} 65. Rd2 {[%clk 0:00:04]}  Kxc3 {[%clk 0:00:06]} 66. Rd7 {[%clk 0:00:03]}  Rxb4 {[%clk 0:00:06]} 67. Rxf7 {[%clk 0:00:03]}  Rb1 {[%clk 0:00:04]} 68. Re7 {[%clk 0:00:03]}  Kd4 {[%clk 0:00:05]} 69. f7 {[%clk 0:00:02]}  Rb2+ {[%clk 0:00:05]} 70. Kf1 {[%clk 0:00:01]}  Ke3 {[%clk 0:00:06]} 71. Kg1 {[%clk 0:00:01]}  Kxf3 {[%clk 0:00:06]} 0-1


[Site "https://www.chess.com"]

[Event "Titled Tuesday Blitz January 31 Late 2023"]
[White "Fajdetic, Hrvoje"]
[Black "Novikov, Evgenij"]
[WhiteFideId "14501945"]
[BlackFideId "4125380"]
[WhiteElo "2151"]
[BlackElo "2276"]
[Result "0-1"]
[Round "02"]
[TimeControl "180+2"]
[Date "2023.01.31"]
[WhiteClock "0:00:01"]
[BlackClock "0:00:40"]

1. f4 {[%clk 0:03:00]}  g5 {[%clk 0:02:55]} 2. d3 {[%clk 0:02:50]}  Bg7 {[%clk 0:02:52]} 3. e4 {[%clk 0:02:44]}  d5 {[%clk 0:02:46]} 4. e5 {[%clk 0:02:30]}  gxf4 {[%clk 0:02:42]} 5. Bxf4 {[%clk 0:02:28]}  c5 {[%clk 0:02:40]} 6. Nf3 {[%clk 0:02:27]}  Nc6 {[%clk 0:02:40]} 7. c3 {[%clk 0:02:12]}  Bg4 {[%clk 0:02:37]} 8. d4 {[%clk 0:02:06]}  cxd4 {[%clk 0:02:37]} 9. cxd4 {[%clk 0:02:06]}  Qb6 {[%clk 0:02:35]} 10. Nc3 {[%clk 0:01:37]}  O-O-O {[%clk 0:02:23]} 11. Be3 {[%clk 0:00:58]}  Qxb2 {[%clk 0:01:42]} 12. Rc1 {[%clk 0:00:55]}  Kb8 {[%clk 0:01:41]} 13. Be2 {[%clk 0:00:31]}  Nh6 {[%clk 0:01:28]} 14. O-O {[%clk 0:00:27]}  Nf5 {[%clk 0:01:27]} 15. Bf2 {[%clk 0:00:26]}  Bh6 {[%clk 0:01:21]} 16. Rc2 {[%clk 0:00:24]}  Qb4 {[%clk 0:01:17]} 17. Qb1 {[%clk 0:00:17]}  Ne3 {[%clk 0:01:03]} 18. Qxb4 {[%clk 0:00:07]}  Nxb4 {[%clk 0:01:02]} 19. Rb2 {[%clk 0:00:07]}  Nxf1 {[%clk 0:01:00]} 20. Rxb4 {[%clk 0:00:07]}  Ne3 {[%clk 0:00:57]} 21. Ba6 {[%clk 0:00:05]}  b6 {[%clk 0:00:53]} 22. e6 {[%clk 0:00:02]}  Bxf3 {[%clk 0:00:46]} 23. Bg3+ {[%clk 0:00:01]}  Ka8 {[%clk 0:00:40]} 0-1


[Site "https://www.chess.com"]

[Event "Titled Tuesday Blitz January 31 Late 2023"]
[White "Yanayt, Eugene"]
[Black "Drnovsek, Gal"]
[WhiteFideId "2020165"]
[BlackFideId "14607077"]
[WhiteElo "2004"]
[BlackElo "2397"]
[Result "0-1"]
[Round "02"]
[TimeControl "180+2"]
[Date "2023.01.31"]
[WhiteClock "0:00:01"]
[BlackClock "0:00:08"]

1. e3 {[%clk 0:03:00]}  g6 {[%clk 0:02:58]} 2. Nf3 {[%clk 0:02:55]}  Bg7 {[%clk 0:02:58]} 3. c4 {[%clk 0:02:53]}  d6 {[%clk 0:02:58]} 4. Nc3 {[%clk 0:02:52]}  c5 {[%clk 0:02:59]} 5. d4 {[%clk 0:02:50]}  Nc6 {[%clk 0:02:57]} 6. d5 {[%clk 0:02:47]}  Na5 {[%clk 0:02:56]} 7. Be2 {[%clk 0:02:44]}  a6 {[%clk 0:02:54]} 8. O-O {[%clk 0:02:42]}  Rb8 {[%clk 0:02:53]} 9. Bd2 {[%clk 0:02:39]}  Bd7 {[%clk 0:02:53]} 10. a4 {[%clk 0:02:34]}  Nf6 {[%clk 0:02:35]} 11. e4 {[%clk 0:02:19]}  O-O {[%clk 0:02:33]} 12. h3 {[%clk 0:02:15]}  Qc7 {[%clk 0:02:30]} 13. Bf4 {[%clk 0:02:01]}  Nh5 {[%clk 0:02:23]} 14. Bh2 {[%clk 0:01:58]}  f5 {[%clk 0:02:22]} 15. exf5 {[%clk 0:01:47]}  gxf5 {[%clk 0:02:21]} 16. Ng5 {[%clk 0:01:45]}  Nf6 {[%clk 0:02:19]} 17. Ne6 {[%clk 0:01:44]}  Bxe6 {[%clk 0:02:19]} 18. dxe6 {[%clk 0:01:44]}  Nc6 {[%clk 0:02:18]} 19. Nd5 {[%clk 0:01:43]}  Nxd5 {[%clk 0:02:17]} 20. Qxd5 {[%clk 0:01:42]}  Nd4 {[%clk 0:02:09]} 21. Bh5 {[%clk 0:01:30]}  Rf6 {[%clk 0:02:08]} 22. Bf7+ {[%clk 0:01:28]}  Kh8 {[%clk 0:02:09]} 23. Rae1 {[%clk 0:01:18]}  Rf8 {[%clk 0:02:08]} 24. Re3 {[%clk 0:01:16]}  f4 {[%clk 0:02:07]} 25. Re4 {[%clk 0:01:14]}  f3 {[%clk 0:02:07]} 26. g4 {[%clk 0:01:12]}  Rh6 {[%clk 0:01:51]} 27. Bh5 {[%clk 0:01:04]}  Rg8 {[%clk 0:01:44]} 28. Bf4 {[%clk 0:00:58]}  Rf6 {[%clk 0:01:34]} 29. Bg5 {[%clk 0:00:57]}  Rff8 {[%clk 0:01:30]} 30. Re3 {[%clk 0:00:41]}  Bf6 {[%clk 0:01:20]} 31. Bh6 {[%clk 0:00:39]}  Rb8 {[%clk 0:01:09]} 32. Kh1 {[%clk 0:00:35]}  Qc6 {[%clk 0:01:06]} 33. h4 {[%clk 0:00:27]}  Qxd5 {[%clk 0:01:04]} 34. cxd5 {[%clk 0:00:26]}  Bxh4 {[%clk 0:01:04]} 35. Bf4 {[%clk 0:00:25]}  Bf6 {[%clk 0:01:04]} 36. Bg3 {[%clk 0:00:24]}  b5 {[%clk 0:01:02]} 37. a5 {[%clk 0:00:23]}  b4 {[%clk 0:01:01]} 38. Rfe1 {[%clk 0:00:22]}  Rb5 {[%clk 0:01:00]} 39. Bxd6 {[%clk 0:00:18]}  exd6 {[%clk 0:00:56]} 40. e7 {[%clk 0:00:18]}  Bxe7 {[%clk 0:00:53]} 41. Rxe7 {[%clk 0:00:17]}  Ne2 {[%clk 0:00:51]} 42. g5 {[%clk 0:00:15]}  Nf4 {[%clk 0:00:43]} 43. Bxf3 {[%clk 0:00:15]}  Rxg5 {[%clk 0:00:43]} 44. Rf7 {[%clk 0:00:12]}  Nd3 {[%clk 0:00:36]} 45. Re8+ {[%clk 0:00:11]}  Rg8 {[%clk 0:00:35]} 46. Rff8 {[%clk 0:00:10]}  Rxf8 {[%clk 0:00:34]} 47. Rxf8+ {[%clk 0:00:11]}  Kg7 {[%clk 0:00:35]} 48. Rd8 {[%clk 0:00:11]}  Ne5 {[%clk 0:00:32]} 49. Be4 {[%clk 0:00:10]}  Nf7 {[%clk 0:00:30]} 50. Rd7 {[%clk 0:00:09]}  Kf6 {[%clk 0:00:22]} 51. Bxh7 {[%clk 0:00:09]}  Rxa5 {[%clk 0:00:22]} 52. Bg8 {[%clk 0:00:08]}  Ne5 {[%clk 0:00:20]} 53. Rxd6+ {[%clk 0:00:08]}  Kf5 {[%clk 0:00:20]} 54. Bh7+ {[%clk 0:00:08]}  Kf4 {[%clk 0:00:21]} 55. Rf6+ {[%clk 0:00:08]}  Kg5 {[%clk 0:00:20]} 56. Rf8 {[%clk 0:00:07]}  Ra1+ {[%clk 0:00:19]} 57. Kg2 {[%clk 0:00:08]}  Nc4 {[%clk 0:00:16]} 58. Rg8+ {[%clk 0:00:08]}  Kf6 {[%clk 0:00:16]} 59. Rg6+ {[%clk 0:00:08]}  Ke5 {[%clk 0:00:14]} 60. Kf3 {[%clk 0:00:06]}  Rd1 {[%clk 0:00:14]} 61. Rg5+ {[%clk 0:00:05]}  Kf6 {[%clk 0:00:14]} 62. Rf5+ {[%clk 0:00:05]}  Ke7 {[%clk 0:00:14]} 63. Rh5 {[%clk 0:00:05]}  Kd6 {[%clk 0:00:15]} 64. Kg2 {[%clk 0:00:05]}  Ne5 {[%clk 0:00:16]} 65. Rh6+ {[%clk 0:00:05]}  Kxd5 {[%clk 0:00:15]} 66. Bg8+ {[%clk 0:00:05]}  Kd4 {[%clk 0:00:12]} 67. Rh4+ {[%clk 0:00:06]}  Kd3 {[%clk 0:00:09]} 68. Bh7+ {[%clk 0:00:07]}  Kd2 {[%clk 0:00:09]} 69. Re4 {[%clk 0:00:07]}  Nc4 {[%clk 0:00:08]} 70. Rxc4 {[%clk 0:00:06]}  Rc1 {[%clk 0:00:09]} 71. Re4 {[%clk 0:00:04]}  a5 {[%clk 0:00:08]} 72. Re5 {[%clk 0:00:03]}  a4 {[%clk 0:00:08]} 73. Bg8 {[%clk 0:00:03]}  a3 {[%clk 0:00:09]} 74. Rd5+ {[%clk 0:00:04]}  Ke2 {[%clk 0:00:08]} 75. Bh7 {[%clk 0:00:01]}  a2 {[%clk 0:00:07]} 76. Bd3+ {[%clk 0:00:02]}  Ke1 {[%clk 0:00:07]} 77. Re5+ {[%clk 0:00:01]}  Kd2 {[%clk 0:00:08]} 0-1


[Site "https://www.chess.com"]

[Event "Titled Tuesday Blitz January 31 Late 2023"]
[White "Corredor Castellanos, Camilo"]
[Black "Arencibia Monduy, Antonio"]
[WhiteFideId "4425871"]
[BlackFideId "3507939"]
[WhiteElo "1957"]
[BlackElo "2122"]
[Result "0-1"]
[Round "02"]
[TimeControl "180+2"]
[Date "2023.01.31"]
[WhiteClock "0:00:34"]
[BlackClock "0:01:07"]

1. Nf3 {[%clk 0:03:00]}  e6 {[%clk 0:02:59]} 2. b3 {[%clk 0:02:59]}  d5 {[%clk 0:02:59]} 3. Bb2 {[%clk 0:03:00]}  Nf6 {[%clk 0:03:00]} 4. e3 {[%clk 0:03:00]}  Be7 {[%clk 0:03:01]} 5. c4 {[%clk 0:03:01]}  O-O {[%clk 0:03:01]} 6. d4 {[%clk 0:03:01]}  b6 {[%clk 0:03:02]} 7. Bd3 {[%clk 0:02:51]}  Bb7 {[%clk 0:03:02]} 8. O-O {[%clk 0:02:52]}  Ne4 {[%clk 0:03:02]} 9. Nbd2 {[%clk 0:02:48]}  f5 {[%clk 0:03:02]} 10. Ne5 {[%clk 0:02:47]}  Nd7 {[%clk 0:03:03]} 11. f3 {[%clk 0:02:47]}  Nxd2 {[%clk 0:03:02]} 12. Qxd2 {[%clk 0:02:47]}  Nxe5 {[%clk 0:03:03]} 13. dxe5 {[%clk 0:02:48]}  dxc4 {[%clk 0:03:01]} 14. bxc4 {[%clk 0:02:49]}  Bc5 {[%clk 0:02:59]} 15. Kh1 {[%clk 0:02:40]}  Qe7 {[%clk 0:02:59]} 16. Qe2 {[%clk 0:02:33]}  Rad8 {[%clk 0:02:59]} 17. Rad1 {[%clk 0:02:33]}  f4 {[%clk 0:02:55]} 18. exf4 {[%clk 0:02:15]}  Rxf4 {[%clk 0:02:55]} 19. Bc1 {[%clk 0:02:15]}  Rff8 {[%clk 0:02:54]} 20. Be4 {[%clk 0:02:08]}  Bxe4 {[%clk 0:02:39]} 21. Qxe4 {[%clk 0:02:06]}  Rxd1 {[%clk 0:02:28]} 22. Rxd1 {[%clk 0:02:07]}  Rd8 {[%clk 0:02:28]} 23. Rf1 {[%clk 0:01:34]}  Qd7 {[%clk 0:02:28]} 24. Qg4 {[%clk 0:01:31]}  Qf7 {[%clk 0:02:15]} 25. h3 {[%clk 0:01:12]}  a5 {[%clk 0:02:15]} 26. f4 {[%clk 0:01:07]}  g6 {[%clk 0:02:14]} 27. f5 {[%clk 0:01:02]}  exf5 {[%clk 0:02:07]} 28. Qg5 {[%clk 0:01:02]}  Be7 {[%clk 0:02:00]} 29. Qf4 {[%clk 0:01:00]}  Qe6 {[%clk 0:01:54]} 30. Bb2 {[%clk 0:00:57]}  a4 {[%clk 0:01:52]} 31. h4 {[%clk 0:00:55]}  a3 {[%clk 0:01:52]} 32. Ba1 {[%clk 0:00:55]}  Kg7 {[%clk 0:01:37]} 33. h5 {[%clk 0:00:56]}  g5 {[%clk 0:01:35]} 34. Qf3 {[%clk 0:00:54]}  Rf8 {[%clk 0:01:32]} 35. Qd5 {[%clk 0:00:50]}  Qxd5 {[%clk 0:01:22]} 36. cxd5 {[%clk 0:00:51]}  Kh6 {[%clk 0:01:20]} 37. Rc1 {[%clk 0:00:50]}  Bc5 {[%clk 0:01:19]} 38. d6 {[%clk 0:00:44]}  cxd6 {[%clk 0:01:19]} 39. exd6 {[%clk 0:00:44]}  Rd8 {[%clk 0:01:15]} 40. Bf6 {[%clk 0:00:40]}  Rxd6 {[%clk 0:01:12]} 41. Be7 {[%clk 0:00:40]}  Rd5 {[%clk 0:01:10]} 42. Bxc5 {[%clk 0:00:36]}  Rxc5 {[%clk 0:01:10]} 43. Rb1 {[%clk 0:00:36]}  Kxh5 {[%clk 0:01:07]} 44. Rxb6 {[%clk 0:00:36]}  Rc2 {[%clk 0:01:07]} 45. Ra6 {[%clk 0:00:35]}  Rxa2 {[%clk 0:01:07]} 46. Ra4 {[%clk 0:00:35]}  f4 {[%clk 0:01:07]} 47. Kh2 {[%clk 0:00:35]}  Kg4 {[%clk 0:01:07]} 48. Ra5 {[%clk 0:00:36]}  h5 {[%clk 0:01:07]} 49. Ra6 {[%clk 0:00:36]}  h4 {[%clk 0:01:08]} 50. Kh1 {[%clk 0:00:34]}  Kg3 {[%clk 0:01:07]} 0-1


[Site "https://www.chess.com"]